Cogmind - Beta 13 @@@ ROGUE MODE // 2024.05.04 @ 10:52:41 Player: Ronin_tempest Result: Destroyed by Autobeam Turret with Autobeam Performance ------------- Evolutions (0) 0 Regions Visited (2) 400 Robots Destroyed (25) 125 Value Destroyed (514) 514 Prototype IDs (10) 200 Alien Tech Used (0) 0 Bonus (0) 0 TOTAL SCORE: 1239 Bonus ------- None Cogmind --------- Core Integrity 0/250 Matter 299/300 Energy 100/100 System Corruption 0% Temperature Cool (12) Movement Treading (160) Location -10/Subcaves Parts ------- > --- POWER (1) -------- (None) > --- PROPULSION (2) --- Light Treads > --- UTILITY (2) ------ Subdweller Optics > --- WEAPON (2) ------- Subdweller Laser > --- INVENTORY (5) ---- Ion Engine Gun Armor EM Pulse Gun Grenade Launcher Grenade Launcher Peak State ------------ > --- POWER ------------ Ion Engine > --- PROPULSION ------- Light Treads Spiked Treads > --- UTILITY ---------- Scrap Shield > --- WEAPON ----------- Subdweller Laser Battle Cannon > --- INVENTORY -------- Ion Engine Light Treads EM Pulse Gun Grenade Launcher Grenade Launcher [Rating: 12] Favorites ----------- Power Ion Engine Engine Ion Engine Propulsion Light Treads Treads Light Treads Leg Aluminum Leg Utility Small Storage Unit Device Subdweller Optics Storage Small Storage Unit Processor Visual Processing Unit Protection Power Shielding Weapon EM Pulse Gun Energy Gun EM Pulse Gun Ballistic Gun Battle Rifle Ballistic Cannon Battle Cannon Launcher Grenade Launcher Build | -11 -10 -10 ------- Run | Yrd Mat Sub Slots Evolved . | . . . Power . | . . . Propulsion . | . . . Utility . | . . . Weapon . | . . . Parts Attached 24 | 2 5 17 Power 3 | . 1 2 Engine 3 | . 1 2 Core . | . . . Reactor . | . . . Propulsion 8 | 2 2 4 Treads 8 | 2 2 4 Leg . | . . . Wheel . | . . . Hover . | . . . Flight . | . . . Utility 5 | . 1 4 Device 2 | . . 2 Storage . | . . . Processor 1 | . . 1 Hackware . | . . . Protection 2 | . 1 1 Artifact . | . . . Weapon 8 | . 1 7 Energy Gun 5 | . 1 4 Energy Cannon . | . . . Ballistic Gun 1 | . . 1 Ballistic Cannon 1 | . . 1 Launcher 1 | . . 1 Special Weapon . | . . . Impact Weapon . | . . . Slashing Weapon . | . . . Piercing Weapon . | . . . Special Melee Weapon . | . . . Unidentified Prototypes . | . . . Parts Lost 5 | . . 5 Power 1 | . . 1 Propulsion 2 | . . 2 Utility 1 | . . 1 Weapon 1 | . . 1 Highest Loss Streak 3 | . . 3 To Critical Strikes . | . . . Average Slot Usage (%) 92 | . 97 89 Engine 14 | . 14 14 Treads 27 | . 28 27 Device 5 | . . 8 Storage 8 | . 14 4 Processor 3 | . . 4 Protection 4 | . 12 . Energy Gun 22 | . 27 18 Ballistic Cannon 5 | . . 8 Naked Turns . | . . . Heaviest Build 30 | 12 15 30 Greatest Support 40 | 40 40 40 Greatest Overweight (x) . | . . . Average Overweight (x) . | . . . Largest Inventory Capacity 8 | 8 8 8 Average Capacity 6 | 8 8 6 Most Carried 8 | 6 8 8 Average Carried 6 | 6 7 6 Final Capacity 8 | 8 8 5 Final Carried 8 | 6 8 5 Class Distribution -------------------- 65% | Mutant 34% | Scavenger-Mutant Dominant Class ---------------- Mutant | -10/Materials Scavenger-Mutant | -10/Subcaves Resources | -11 -10 -10 ----------- Run | Yrd Mat Sub Matter Collected 802 | 220 50 532 Remotely . | . . . Salvage Created 722 | 86 301 335 Parts 60 | 6 31 23 Haulers Intercepted 2 | . 2 . Recyclers Shooed 1 | . 1 . Parts Field Recycled . | . . . Retrieved Matter . | . . . Parts Self-Destructed 13 | . . 13 Prevented . | . . . Kills | -11 -10 -10 ------- Run | Yrd Mat Sub Combat Hostiles Destroyed 17 | . 7 10 Guns 13 | . 7 6 Cannons 4 | . . 4 Classes Destroyed 10 | 2 5 3 Worker 1 | . 1 . Builder 1 | . 1 . Tunneler 1 | 1 . . Hauler 2 | . 2 . Recycler 1 | 1 . . Watcher 2 | . 2 . Swarmer 8 | . 7 1 Grunt 1 | . . 1 Sentry 1 | . . 1 Subdweller 7 | . . 7 Best Kill Streak 4 | 2 4 2 Combat Bots Only 4 | . 4 2 Max Kills in Single Turn 1 | 1 1 1 Gunslinging . | . . . Exploded . | . . . Melee . | . . . Uniques/NPCs Destroyed . | . . . Combat | -11 -10 -10 -------- Run | Yrd Mat Sub Hostile Shots Fired 139 | . 36 103 Missed 40 | . 12 28 Damage Taken 1339 | . 239 1100 Core 251 | . 32 219 Absorbed by Shields . | . . . Redirected to Shielding 2 | . 2 . Regen/Repaired (Parts) 31 | . 31 . Core Remaining (%) 100 | 100 . . Volleys Fired 147 | 2 33 112 Largest 2 | 2 2 2 Hottest 100 | 80 80 100 Shots Fired 215 | 4 66 145 Gun 143 | 4 66 73 Cannon 70 | . . 70 Launcher 2 | . . 2 Special . | . . . Kinetic 76 | . . 76 Thermal 44 | . . 44 Explosive 2 | . . 2 Electromagnetic 93 | 4 66 23 Robot Hit Streak 17 | 4 4 17 Robot Miss Streak 6 | . 6 2 Penetration Max . | . . . Secondary Targets 1 | . 1 . Max Gunslinging Chain 1 | . 1 . Shots Hit Robots 110 | 4 24 82 Core Hits 37 | 2 14 21 Critical Kills . | . . . Critical Parts Destroyed . | . . . Critical Strikes 5 | . . 5 Destroy 1 | . . 1 Blast 4 | . . 4 Melee Attacks . | . . . Impact . | . . . Slashing . | . . . Piercing . | . . . Sneak Attacks . | . . . Combat Hostiles . | . . . Follow-up Attacks . | . . . Damage Inflicted 2107 | 77 509 1521 Guns 918 | 40 366 512 Cannons 1009 | . . 1009 Explosions 180 | 37 143 . Melee . | . . . Ramming . | . . . Kinetic 1009 | . . 1009 Thermal 431 | 37 81 313 Explosive . | . . . Electromagnetic 667 | 40 428 199 Impact . | . . . Slashing . | . . . Piercing . | . . . Highest Corruption . | . . . Average Corruption . | . . . Corruption Purged . | . . . Corruption Blocked . | . . . Overload Shots . | . . . Overflow Damage 9 | . 9 . Projectiles . | . . . Explosions 9 | . 9 . Melee . | . . . Knockbacks 15 | . . 15 Impact . | . . . Kinetic 15 | . . 15 Secondary . | . . . Self-Inflicted Damage 33 | . 33 . Shots 1 | . 1 . Rammed . | . . . Targets Rammed . | . . . Kicked . | . . . Crushed . | . . . Highest Temperature 144 | 20 144 . Average Temperature 42 | 12 43 . Received Heat Transfer 384 | . . 384 Siege Activations . | . . . Robots Corrupted 1 | . 1 . Combat Hostiles . | . . . Parts Fried 2 | . 1 1 Impact Corruptions . | . . . Robots Melted . | . . . Combat Hostiles . | . . . Parts Melted . | . . . Heat Transferred 525 | 50 100 375 Parts Sabotaged . | . . . Parts Stolen . | . . . Parts Stripped . | . . . Power Chain Reactions 3 | 1 2 . Alert | -11 -10 -10 ------- Run | Yrd Mat Sub Peak Influence 267 | 10 267 . Initial 6 | . 6 . Average 90 | 7 92 . Maximum Alert Level 1 | . 1 . Low Security (%) 88 | 100 88 . Level 1 11 | . 11 . Level 2 . | . . . Level 3 . | . . . Level 4 . | . . . Level 5 . | . . . High Security . | . . . Max Security . | . . . Squads Dispatched 1 | . 1 . Investigation . | . . . Extermination . | . . . Reinforcement 1 | . 1 . Assault . | . . . Garrison . | . . . Intercept . | . . . Searches Triggered . | . . . Construction Impeded . | . . . Haulers Reinforced . | . . . Active Scanning Responses . | . . . Cargo Convoy Interrupts . | . . . Stealth | -11 -10 -10 --------- Run | Yrd Mat Sub Distress Signals 3 | . 3 . Communications Jammed . | . . . Distress Signals . | . . . Times Spotted 54 | . 18 36 Peak Tracking Total 5 | . 5 3 Tactical Retreats 4 | . 2 2 Traps | -11 -10 -10 ------- Run | Yrd Mat Sub Traps Triggered 2 | . 1 1 Indirectly . | . . . Trap Hack Attempts . | . . . Triggered . | . . . Disarmed . | . . . Reprogrammed . | . . . Reused . | . . . Traps Extracted . | . . . Installed . | . . . Triggered . | . . . Machines | -11 -10 -10 ---------- Run | Yrd Mat Sub Machines Disabled 3 | . 2 1 Max in Single Turn 1 | . 1 1 Machines Repaired . | . . . Machines Dismantled . | . . . Machines Sabotaged . | . . . Overloaded Fab Kills . | . . . Hacking | -11 -10 -10 --------- Run | Yrd Mat Sub Machines Accessed 6 | . 5 1 Terminals 4 | . 4 . Fabricators . | . . . Repair Stations 1 | . 1 . Recycling Units . | . . . Scanalyzers . | . . . Garrison Access . | . . . Total Hacks 16 | . 15 1 Successful 8 | . 7 1 Failed 8 | . 8 . Catastrophic 2 | . 2 . Database Lockouts . | . . . Manual 12 | . 12 . Terminals 12 | . 12 . Fabricators . | . . . Repair Stations 3 | . 3 . Recycling Units . | . . . Scanalyzers . | . . . Garrison Access . | . . . Terminal Hacks 2 | . 1 1 Locate Traps 1 | . 1 . Derelict Proto ID Bank 1 | . . 1 Fabricator Hacks . | . . . Repair Station Hacks 2 | . 2 . Scan Component 1 | . 1 . Repair 1 | . 1 . Recycling Unit Hacks . | . . . Scanalyzer . | . . . Garrison Access Hacks . | . . . Unauthorized Hacks 4 | . 4 . Terminals 4 | . 4 . Botnet 3 | . 3 . Operators 1 | . 1 . Fabricators . | . . . Repair Stations . | . . . Recycling Units . | . . . Scanalyzers . | . . . Garrison Access . | . . . Data Cores Recovered . | . . . Used . | . . . Hacking Detections 5 | . 5 . Full Trace Events 1 | . 1 . Feedback Events . | . . . Feedback Blocked . | . . . Robot Schematics Acquired . | . . . Robots Built . | . . . Authchips . | . . . Time . | . . . Total Robot Build Rating . | . . . Part Schematics Acquired . | . . . Parts Built . | . . . Authchips . | . . . Time . | . . . Total Part Build Rating . | . . . Parts Repaired 1 | . 1 . Time 26 | . 26 . Parts Recycled . | . . . Recycled Matter . | . . . Retrieved Matter . | . . . Retrieved Components . | . . . Parts Scanalyzed . | . . . Part Schematics Acquired . | . . . Parts Damaged . | . . . Bothacking | -11 -10 -10 ------------ Run | Yrd Mat Sub Used RIF Installer . | . . . Robots Hacked . | . . . Non-combat . | . . . Combat . | . . . Robot Hacks Applied . | . . . Relay Couplers Released . | . . . Fabnet Peak Effective % . | . . . Robots Rewired . | . . . Allies Hacked . | . . . Hacks Repelled . | . . . Allies | -11 -10 -10 -------- Run | Yrd Mat Sub Total Allies . | . . . Largest Group . | . . . Highest-Rated Group . | . . . Highest-Rated Ally . | . . . Total Orders . | . . . Ally Attacks . | . . . Total Damage . | . . . Kills . | . . . Allies Corrupted . | . . . Allies Melted . | . . . Intel | -11 -10 -10 ------- Run | Yrd Mat Sub Robot Analysis Total . | . . . Derelict Logs Recovered 2 | . . 2 Drone Launches . | . . . Drone Recoveries . | . . . Exploration | -11 -10 -10 ------------- Run | Yrd Mat Sub Turns Passed 3393 | 22 1214 2157 Spaces Moved 1807 | 9 667 1131 Core . | . . . Treads 1807 | 9 667 1131 Legs . | . . . Wheels . | . . . Hover . | . . . Flight . | . . . Fastest Speed 160 | 160 160 160 Average Speed 160 | 160 160 160 Slowest Speed 160 | 160 160 160 Overloaded Moves . | . . . Propulsion Burnouts . | . . . Robots Hopped . | . . . Cave-ins Triggered . | . . . Exploration Rate (%) 54 | 3 95 66 Regions Visited 2 Branch Regions 1 Pre-discovered Areas . | . . . Known Exits Taken . | . . . Unknown Exits Taken 2 | 1 1 . Scrap Searched 5 | . . 5 Spaces Dug . | . . . Terrain Destroyed 17 | . 7 10 Melee . | . . . Projectile 3 | . . 3 AOE 14 | . 7 7 Terrain Rammed . | . . . Walls Destroyed . | . . . Machines Disabled . | . . . Actions | -11 -10 -10 --------- Run | Yrd Mat Sub Total 2097 | 12 751 1334 Wait 80 | . 30 50 Move 1805 | 8 666 1131 Hop . | . . . Pick Up 12 | . 8 4 Fast Attach 7 | . 2 5 Attach 2 | . . 2 Detach 2 | . . 2 Swap 15 | 2 3 10 Drop 25 | . 9 16 Fire 147 | 2 33 112 Melee . | . . . Ram . | . . . Kick . | . . . Crush . | . . . Escape Stasis . | . . . Rewire 1 | . . 1 Trap . | . . . Miscellaneous 1 | . . 1 Route ------- -11/Scrapyard -10/Materials (discovered 6 exits: [*Mat x3] / [*Min x2] / *Sub) -10/Subcaves (discovered 3 exits: [*Mat x2] / [*Rec]) History --------- Turn | Location | Event 10 | -11/Scrapyard | Discovered new exit (range 3) 23 | -11/Scrapyard | Entered Materials 138 | -10/Materials | Discovered new exit (range 8) 303 | -10/Materials | Build established: Mutant 358 | -10/Materials | Repaired EM Pulse Gun 464 | -10/Materials | Discovered new exit (range 16) 596 | -10/Materials | Discovered new exit (range 10) 765 | -10/Materials | Discovered new exit (range 15) 976 | -10/Materials | Discovered new exit (range 7) 1083 | -10/Materials | Discovered new exit (range 16) 1237 | -10/Materials | Entered Subcaves 1420 | -10/Subcaves | Learned location of 1 exit from Materials 1574 | -10/Subcaves | Shifting Twisted Machinery released Sub. Laser 1684 | -10/Subcaves | Shifting Twisted Machinery released Sub. Power Source 2101 | -10/Subcaves | Core integrity fell below 50% 2137 | -10/Subcaves | A swath of the cavern ceiling suddenly collapsed 2303 | -10/Subcaves | Discovered new exit (range 14) 2531 | -10/Subcaves | Build established: Scavenger-Mutant 2592 | -10/Subcaves | A swath of the cavern ceiling suddenly collapsed 2705 | -10/Subcaves | Learned Materials non-interactive machine intel 2735 | -10/Subcaves | Visited 4L-MR0's lab 2749 | -10/Subcaves | Found Gun Armor 2920 | -10/Subcaves | Discovered new exit (range 19) 3365 | -10/Subcaves | Discovered new exit (range 11) 3389 | -10/Subcaves | Core integrity fell below 20% 3394 | -10/Subcaves | Destroyed by Autobeam Turret with Autobeam Last Messages --------------- 03300_ Acquired Broken Sub. Laser. 03303_ Destroyed Scrap Shield. 03307_ BR-2P5(R) destroyed. 03312_ Acquired 21 matter. 03314_ Acquired 12 matter. 03316_ Acquired 8 matter. 03319_ Acquired 4 matter. 03322_ Acquired 7 matter. 03324_ Acquired 16 matter. 03335_ Acquired 3 matter. 03359_ Acquired 14 matter. 03365_ Acquired 44 matter. 03365_ EXIT=FOUND 03372_ S-10 Pest destroyed. 03381_ Lgt. Assault Rifle fries itself beyond repair. 03382_ Acquired 10 matter. 03384_ Lgt. Treads destroyed. 03388_ Battle Cannon destroyed. 03390_ Imp. Ion Engine destroyed. Map ----- +----------------------------------------------------+ | ?????????????????????????????????????????????????? | | ?????????????????????????????????????????????????? | | ?????????????????????????????????????????????????? | | ?????????????????????????????????????????????????? | | ?????????????????????????????????????????????????? | | ?????????????????????????????????????????????????? | | ?????????????????????????????????????????????????? | | ?????????????????????????????????????????????????? | | ?????????????????????????????????????????????????? | | ?????????????????????????????????????????????????? | | ?????????????????????????????????????????????????? | | ?????????????????????????????????????????????????? | | ?????????????????????????????????????????????????? | | ?????????????????????????????????????????????????? | | ?????????????????????????????????????????????????? | | ?????????????????????????????????????????????????? | | ???????#?????????????????????????????????????????? | | ???????? ##??????????????????????????????????????? | | ????????? ?????????????????????????????????????? | | ?????????? ????????????????????????????????????? | | ???? ?? ??# ??????########????????????????????? | | ????? """##" ??????#" " "#????????????????????? | | ??????? """" ?????# "#????????????????????? | | ????????? % ;###### "#????????????????????? | | ???????# "#""" t""##???????????????????? | | ????????# """##"|%! @ <#???????????????????? | | ????????#" #?#""" ! t""##???????????????????? | | ????????# " # "#"=#### "#????????????????????? | | ???????##" ?#""[### "#????????????????????? | | ??????? # # ##" ##" """#????????????????????? | | ??????## # ########????????????????????? | | ??????? ?# # ## #????????????????????????? | | ?????### #?#?##?## #????????????????????????? | | ?????# ##??????## #########????????????????? | | ####?# "####????## " ## #????????????????? | | # ### """"#?????###"" #?????????????????? | | # ## ##??????### # ###???????????????? | | # #?####???###### #???????????????? | | ### ###???#### #???????????????? | | ## ## ##### #???????????????? | | ## ## # ##??????????????? | | ## & ##?????????????? | | ### ### = = "#?????????????? | | ### ### ######## # < ##?????????????? | | #####??????# ######" ##??????????????? | | #?????????# ##??## [&#???????????????? | | #??######## ##### &#???????????????? | | ###?## ## ## ##???????????????? | | ##???# # #????????????????? | | #####????# ###### #????????????????? | +----------------------------------------------------+ Best States ------------- Heat Dissipation 25 Energy Generation 12 Energy Capacity 265 Matter Stores 300 Matter Capacity 300 Sight Range 21 Terrain Scan Density 10 Armor Coverage 800 Power Shielding 33 Evasion (%) 40 Recoil Reduction 2 Item Schematics ----------------- None Robot Schematics ------------------ None Fabricated ------------ Nothing Alien Tech Used ----------------- None Achievements -------------- None Challenges ------------ None Game ------ Seed ContainmentLegCompactor Manual? 1 Play Time 00:25:27 Cumulative 57.0 hours Start 2024.05.04 @ 10:23:50 End 2024.05.04 @ 10:52:41 Sessions 1 Manual Loads 0 Difficulty Rogue Special Mode None Game No. 43 Rogue 43 Adventurer 0 Explorer 0 Win Type - Total 0 Types 0/0/0/0/0/0/0/0/0 Lore% 33 Gallery% 34 Achievement% 33 Wizard Run 0 Options --------- Layout 1 ASCII 0 Keyboard 1 Movement Numpad Keybinds 1 Fullscreen 1 Font 24/Smallcaps Map View 50x35 Zoom Use 0% Tactical HUD 1 Map Filters NONE Filters NONE Steam 1 RUN: 24b0d76f-3ee7-438a-bb91-738806674b33